[Event "SS Manhem Chess Week 2019 Goteborg Open"]
[Site "Molnlycke kulturhus, Biblioteksgatan 2, Molnlycke, Sweden"]
[Date "2019.08.17"]
[Round "6.17"]
[White "Carlfors, Viktor"]
[Black "Svensson, Leif"]
[Result "0-1"]
[TimeControl "15 minutes + 5 seconds per move from move one (Round 1 - 4) / 90 minutes + 30 seconds per move from move one (Round 5 - 8)"]
[WhiteFideId "1740725"]
[BlackFideId "1702459"]
[WhiteElo "1820"]
[BlackElo "2027"]

1. d4 {[%clk 01:30:12]} {[%emt 00:00:47]} d5 {[%clk 01:30:54]} {[%emt
00:00:06]} 2. c4 {[%clk 01:30:34]} {[%emt 00:00:08]} Bf5 {[%clk 01:31:17]}
{[%emt 00:00:06]} 3. Bf4 {[%clk 01:28:49]} {[%emt 00:02:16]} e6 {[%clk
01:31:33]} {[%emt 00:00:14]} 4. Nc3 {[%clk 01:28:56]} {[%emt 00:00:23]} Nc6
{[%clk 01:24:32]} {[%emt 00:07:31]} 5. e3 {[%clk 01:28:59]} {[%emt 00:00:27]}
Bd6 {[%clk 01:23:20]} {[%emt 00:01:42]} 6. Bg3 {[%clk 01:29:17]} {[%emt
00:00:11]} Nf6 {[%clk 01:22:16]} {[%emt 00:01:35]} 7. Rc1 {[%clk 01:27:31]}
{[%emt 00:02:15]} O-O {[%clk 01:21:56]} {[%emt 00:00:51]} 8. Be2 {[%clk
01:27:32]} {[%emt 00:00:28]} Ne4 {[%clk 01:17:22]} {[%emt 00:05:05]} 9. Bxd6
{[%clk 01:24:16]} {[%emt 00:03:47]} Qxd6 {[%clk 01:17:37]} {[%emt 00:00:15]} 10.
cxd5 {[%clk 01:23:48]} {[%emt 00:00:57]} exd5 {[%clk 01:17:46]} {[%emt
00:00:21]} 11. a3 {[%clk 01:23:23]} {[%emt 00:00:56]} Rfe8 {[%clk 01:13:37]}
{[%emt 00:04:38]} 12. Nf3 {[%clk 01:22:11]} {[%emt 00:01:41]} a6 {[%clk
01:12:08]} {[%emt 00:02:00]} 13. Qb3 {[%clk 01:19:34]} {[%emt 00:03:06]} Nxc3
{[%clk 01:07:18]} {[%emt 00:05:21]} 14. Qxc3 {[%clk 01:17:05]} {[%emt
00:02:59]} Re6 {[%clk 01:06:42]} {[%emt 00:01:05]} 15. Qc5 {[%clk 01:14:51]}
{[%emt 00:02:46]} Qd8 {[%clk 01:04:18]} {[%emt 00:02:52]} 16. b4 {[%clk
01:14:25]} {[%emt 00:00:58]} Rg6 {[%clk 01:04:14]} {[%emt 00:00:34]} 17. Kf1
{[%clk 01:12:48]} {[%emt 00:02:07]} Be4 {[%clk 01:03:55]} {[%emt 00:00:49]} 18.
b5 {[%clk 01:04:24]} {[%emt 00:08:55]} axb5 {[%clk 00:59:55]} {[%emt 00:04:31]}
19. Bxb5 {[%clk 01:01:56]} {[%emt 00:02:58]} Qf6 {[%clk 00:52:23]} {[%emt
00:08:02]} 20. Be2 {[%clk 01:00:10]} {[%emt 00:02:15]} Ra5 {[%clk 00:50:01]}
{[%emt 00:02:52]} 21. Qc3 {[%clk 00:59:52]} {[%emt 00:00:47]} Qe7 {[%clk
00:49:25]} {[%emt 00:01:05]} 22. Qb2 {[%clk 00:59:30]} {[%emt 00:00:53]} Qxa3
{[%clk 00:48:58]} {[%emt 00:00:59]} 23. Qxa3 {[%clk 00:57:55]} {[%emt
00:02:05]} Rxa3 {[%clk 00:49:22]} {[%emt 00:00:05]} 24. Rg1 {[%clk 00:57:27]}
{[%emt 00:00:58]} Kf8 {[%clk 00:45:27]} {[%emt 00:04:25]} 25. Nh4 {[%clk
00:54:16]} {[%emt 00:03:40]} Rf6 {[%clk 00:43:06]} {[%emt 00:02:51]} 26. g3
{[%clk 00:47:03]} {[%emt 00:07:44]} Rxe3 {[%clk 00:42:51]} {[%emt 00:00:45]} 27.
Ke1 {[%clk 00:38:46]} {[%emt 00:08:46]} Ra3 {[%clk 00:42:05]} {[%emt 00:01:15]}
28. f3 {[%clk 00:38:58]} {[%emt 00:00:20]} Bd3 {[%clk 00:42:14]} {[%emt
00:00:21]} 29. Bxd3 {[%clk 00:34:23]} {[%emt 00:05:05]} Rxd3 {[%clk 00:42:37]}
{[%emt 00:00:07]} 30. Ke2 {[%clk 00:34:27]} {[%emt 00:00:27]} Rxd4 {[%clk
00:42:45]} {[%emt 00:00:23]} 31. Ng2 {[%clk 00:34:16]} {[%emt 00:00:41]} Re6+
{[%clk 00:41:41]} {[%emt 00:01:34]} 32. Ne3 {[%clk 00:32:10]} {[%emt 00:02:35]}
Ra4 {[%clk 00:42:01]} {[%emt 00:00:10]} 33. Kf2 {[%clk 00:29:57]} {[%emt
00:02:43]} d4 {[%clk 00:41:19]} {[%emt 00:01:12]} 34. Nd5 {[%clk 00:28:10]}
{[%emt 00:02:16]} Ra2+ {[%clk 00:41:32]} {[%emt 00:00:17]} 35. Kf1 {[%clk
00:28:11]} {[%emt 00:00:30]} Ree2 {[%clk 00:41:08]} {[%emt 00:00:53]} 36. h4
{[%clk 00:26:30]} {[%emt 00:02:12]} d3 {[%clk 00:39:19]} {[%emt 00:02:19]} 37.
Rd1 {[%clk 00:24:40]} {[%emt 00:02:20]} Rf2+ {[%clk 00:39:42]} {[%emt
00:00:07]} 0-1

[Event "SS Manhem Chess Week 2019 Goteborg Open"]
[Site "Molnlycke kulturhus, Biblioteksgatan 2, Molnlycke, Sweden"]
[Date "2019.08.17"]
[Round "6.18"]
[White "Johansson, Roy"]
[Black "Hakansson, Simon"]
[Result "1-0"]
[TimeControl "15 minutes + 5 seconds per move from move one (Round 1 - 4) / 90 minutes + 30 seconds per move from move one (Round 5 - 8)"]
[WhiteFideId "1745972"]
[BlackFideId "1738518"]
[WhiteElo "1976"]
[BlackElo "1717"]

1. d4 {[%emt 00:00:06]} d5 {[%emt 00:00:16]} 2. Bf4 {[%clk 01:30:18]} {[%emt
00:00:20]} Nf6 {[%clk 01:30:54]} {[%emt 00:00:07]} 3. e3 {[%clk 01:30:41]}
{[%emt 00:00:06]} c5 {[%clk 01:31:15]} {[%emt 00:00:09]} 4. Nd2 {[%clk
01:30:52]} {[%emt 00:00:19]} Nc6 {[%clk 01:31:10]} {[%emt 00:00:35]} 5. c3
{[%clk 01:31:16]} {[%emt 00:00:06]} Qb6 {[%clk 01:30:14]} {[%emt 00:01:27]} 6.
Qb3 {[%clk 01:30:13]} {[%emt 00:01:33]} c4 {[%clk 01:27:39]} {[%emt 00:03:05]}
7. Qc2 {[%clk 01:30:04]} {[%emt 00:00:39]} Nh5 {[%clk 01:21:42]} {[%emt
00:06:27]} 8. Bg5 {[%clk 01:28:58]} {[%emt 00:01:37]} Qc7 {[%clk 01:16:29]}
{[%emt 00:05:42]} 9. Be2 {[%clk 01:25:07]} {[%emt 00:04:21]} Nf6 {[%clk
01:15:45]} {[%emt 00:01:14]} 10. Ngf3 {[%clk 01:24:18]} {[%emt 00:01:18]} e6
{[%clk 01:14:54]} {[%emt 00:01:21]} 11. O-O {[%clk 01:22:13]} {[%emt 00:02:35]}
Be7 {[%clk 01:14:59]} {[%emt 00:00:25]} 12. e4 {[%clk 01:16:32]} {[%emt
00:06:10]} O-O {[%clk 01:14:09]} {[%emt 00:01:21]} 13. e5 {[%clk 01:16:21]}
{[%emt 00:00:41]} Nd7 {[%clk 01:09:42]} {[%emt 00:04:56]} 14. Bxe7 {[%clk
01:16:27]} {[%emt 00:00:25]} Nxe7 {[%clk 01:10:06]} {[%emt 00:00:05]} 15. Ng5
{[%clk 01:15:39]} {[%emt 00:01:18]} g6 {[%clk 01:07:55]} {[%emt 00:02:42]} 16.
f4 {[%clk 01:12:18]} {[%emt 00:03:50]} b5 {[%clk 01:04:09]} {[%emt 00:04:16]}
17. Rf3 {[%clk 01:11:24]} {[%emt 00:01:23]} h6 {[%clk 01:02:30]} {[%emt
00:02:10]} 18. Nh3 {[%clk 01:11:28]} {[%emt 00:00:25]} a5 {[%clk 01:02:14]}
{[%emt 00:00:47]} 19. Nf2 {[%clk 01:09:08]} {[%emt 00:02:50]} Ba6 {[%clk
00:56:17]} {[%emt 00:06:28]} 20. Rh3 {[%clk 01:05:35]} {[%emt 00:04:01]} Kg7
{[%clk 00:55:42]} {[%emt 00:01:05]} 21. Nf3 {[%clk 01:04:00]} {[%emt 00:02:06]}
b4 {[%clk 00:48:51]} {[%emt 00:07:21]} 22. Qd2 {[%clk 01:03:55]} {[%emt
00:00:34]} bxc3 {[%clk 00:48:27]} {[%emt 00:00:54]} 23. bxc3 {[%clk 01:04:17]}
{[%emt 00:00:08]} Rh8 {[%clk 00:47:34]} {[%emt 00:01:23]} 24. g4 {[%clk
01:03:40]} {[%emt 00:01:08]} a4 {[%clk 00:45:24]} {[%emt 00:02:40]} 25. a3
{[%emt 00:01:44]} Rab8 {[%emt 00:04:26]} 26. Kh1 {[%emt 00:02:29]} Rb7 {[%emt
00:00:24]} 27. Rg1 {[%emt 00:04:22]} Qb8 {[%emt 00:01:34]} 28. Nh4 {[%emt
00:01:27]} Rb1 {[%emt 00:00:50]} 29. Bd1 {[%emt 00:00:58]} Qb2 {[%emt
00:01:00]} 30. Qe3 {[%emt 00:07:01]} Nb6 {[%emt 00:01:53]} 31. f5 {[%clk
01:01:22]} {[%emt 00:00:01]} Kf8 {[%clk 00:24:20]} {[%emt 00:02:13]} 32. fxg6
{[%clk 00:59:56]} {[%emt 00:01:56]} fxg6 {[%clk 00:23:22]} {[%emt 00:01:29]} 33.
Rf3+ {[%clk 00:58:29]} {[%emt 00:01:56]} Ke8 {[%clk 00:21:42]} {[%emt
00:02:09]} 34. Qf4 {[%clk 00:58:10]} {[%emt 00:00:50]} Qxa3 {[%clk 00:16:08]}
{[%emt 00:06:03]} 35. Bxa4+ {[%clk 00:56:39]} {[%emt 00:02:01]} Qxa4 {[%clk
00:14:33]} {[%emt 00:02:05]} 36. Rxb1 {[%clk 00:56:53]} {[%emt 00:00:16]} Nd7
{[%clk 00:13:03]} {[%emt 00:02:00]} 37. Qf7+ {[%clk 00:55:35]} {[%emt
00:01:48]} Kd8 {[%clk 00:13:06]} {[%emt 00:00:27]} 38. Qxe6 {[%clk 00:55:20]}
{[%emt 00:00:46]} Qc2 {[%clk 00:12:13]} {[%emt 00:01:23]} 39. Ra1 {[%clk
00:53:52]} {[%emt 00:01:57]} Bb7 {[%clk 00:12:05]} {[%emt 00:00:39]} 40. Qd6
{[%clk 00:53:08]} {[%emt 00:01:14]} Qb2 {[%clk 00:10:01]} {[%emt 00:02:35]} 41.
Rf1 {[%clk 00:48:52]} {[%emt 00:04:44]} Qb6 {[%clk 00:09:40]} {[%emt 00:00:52]}
42. Qxb6+ {[%clk 00:48:25]} {[%emt 00:00:57]} Nxb6 {[%clk 00:10:03]} {[%emt
00:00:06]} 43. Rb1 {[%clk 00:48:35]} {[%emt 00:00:20]} Nec8 {[%clk 00:07:45]}
{[%emt 00:02:49]} 44. Nxg6 {[%clk 00:46:42]} {[%emt 00:02:23]} Rg8 {[%clk
00:07:37]} {[%emt 00:00:37]} 45. Nh4 {[%clk 00:46:36]} {[%emt 00:00:37]} Bc6
{[%clk 00:07:10]} {[%emt 00:00:58]} 46. Nf5 {[%clk 00:46:15]} {[%emt 00:00:51]}
Rg6 {[%clk 00:04:29]} {[%emt 00:03:11]} 47. Rh3 {[%clk 00:45:49]} {[%emt
00:00:55]} Bd7 {[%clk 00:04:07]} {[%emt 00:00:53]} 48. Nxh6 {[%clk 00:45:19]}
{[%emt 00:01:00]} Be6 {[%clk 00:03:24]} {[%emt 00:01:12]} 49. Nf5 {[%clk
00:45:08]} {[%emt 00:00:42]} Rg5 {[%clk 00:02:26]} {[%emt 00:01:28]} 50. Rh8+
{[%clk 00:43:46]} {[%emt 00:01:52]} Kd7 {[%clk 00:02:02]} {[%emt 00:00:55]} 51.
h4 {[%clk 00:43:26]} {[%emt 00:00:50]} Rg6 {[%clk 00:01:50]} {[%emt 00:00:42]}
52. h5 {[%clk 00:43:01]} {[%emt 00:00:55]} Rg5 {[%clk 00:01:44]} {[%emt
00:00:36]} 53. Rh7+ {[%clk 00:43:02]} {[%emt 00:00:29]} Kd8 {[%clk 00:01:38]}
{[%emt 00:00:36]} 54. Rg7 {[%clk 00:42:43]} {[%emt 00:00:49]} Bxf5 {[%clk
00:01:22]} {[%emt 00:00:47]} 55. Rxg5 {[%clk 00:43:02]} {[%emt 00:00:10]} Bxb1
{[%clk 00:01:45]} {[%emt 00:00:08]} 56. h6 {[%clk 00:42:22]} {[%emt 00:01:10]}
Na4 {[%clk 00:02:03]} {[%emt 00:00:11]} 57. Rg8+ {[%clk 00:42:09]} {[%emt
00:00:43]} Ke7 {[%clk 00:01:57]} {[%emt 00:00:37]} 58. Rxc8 {[%clk 00:41:50]}
{[%emt 00:00:49]} Nxc3 {[%clk 00:01:30]} {[%emt 00:00:56]} 59. h7 {[%clk
00:41:29]} {[%emt 00:00:51]} 1-0

[Event "SS Manhem Chess Week 2019 Goteborg Open"]
[Site "Molnlycke kulturhus, Biblioteksgatan 2, Molnlycke, Sweden"]
[Date "2019.08.18"]
[Round "7.1"]
[White "Blomqvist, Erik"]
[Black "Wiedenkeller, Michael"]
[Result "1/2-1/2"]
[TimeControl "15 minutes + 5 seconds per move from move one (Round 1 - 4) / 90 minutes + 30 seconds per move from move one (Round 5 - 8)"]
[WhiteTitle "GM"]
[BlackTitle "IM"]
[WhiteFideId "1709437"]
[BlackFideId "1700146"]
[WhiteElo "2507"]
[BlackElo "2456"]

1. e4 {[%clk 01:30:56]} {[%emt 00:00:03]} e6 {[%clk 01:26:12]} {[%emt
00:04:49]} 2. d4 {[%clk 01:31:18]} {[%emt 00:00:08]} d5 {[%clk 01:26:36]}
{[%emt 00:00:06]} 3. e5 {[%clk 01:31:44]} {[%emt 00:00:04]} c5 {[%clk
01:27:00]} {[%emt 00:00:06]} 4. c3 {[%clk 01:32:10]} {[%emt 00:00:03]} Qb6
{[%clk 01:27:17]} {[%emt 00:00:14]} 5. Nf3 {[%clk 01:32:27]} {[%emt 00:00:13]}
Bd7 {[%clk 01:27:31]} {[%emt 00:00:17]} 6. Bd3 {[%clk 01:32:33]} {[%emt
00:00:23]} cxd4 {[%clk 01:26:58]} {[%emt 00:01:03]} 7. Nxd4 {[%clk 01:32:50]}
{[%emt 00:00:12]} Nc6 {[%clk 01:26:32]} {[%emt 00:00:57]} 8. Nxc6 {[%clk
01:33:01]} {[%emt 00:00:19]} bxc6 {[%clk 01:21:07]} {[%emt 00:05:54]} 9. O-O
{[%clk 01:33:16]} {[%emt 00:00:14]} Ne7 {[%clk 01:14:39]} {[%emt 00:07:00]} 10.
Qe2 {[%clk 01:29:51]} {[%emt 00:03:55]} Nf5 {[%clk 01:12:33]} {[%emt 00:02:36]}
11. Rd1 {[%clk 01:26:06]} {[%emt 00:04:15]} Be7 {[%clk 01:10:56]} {[%emt
00:02:07]} 12. c4 {[%clk 01:22:12]} {[%emt 00:04:24]} Rd8 {[%clk 01:08:18]}
{[%emt 00:03:07]} 13. Bxf5 {[%clk 01:12:21]} {[%emt 00:10:20]} exf5 {[%clk
01:08:42]} {[%emt 00:00:06]} 14. cxd5 {[%clk 01:12:45]} {[%emt 00:00:07]} cxd5
{[%clk 01:09:07]} {[%emt 00:00:05]} 15. Be3 {[%clk 01:12:48]} {[%emt 00:00:26]}
Qb7 {[%clk 01:05:49]} {[%emt 00:03:49]} 16. Nc3 {[%clk 01:12:58]} {[%emt
00:00:20]} Bc6 {[%clk 01:04:20]} {[%emt 00:01:59]} 17. Bd4 {[%clk 01:11:32]}
{[%emt 00:01:55]} O-O {[%clk 01:04:15]} {[%emt 00:00:36]} 18. Qe3 {[%clk
01:05:55]} {[%emt 00:06:06]} Rfe8 {[%clk 01:00:41]} {[%emt 00:04:04]} 19. Ne2
{[%clk 00:53:22]} {[%emt 00:13:04]} a5 {[%clk 00:52:34]} {[%emt 00:08:37]} 20.
Qg3 {[%clk 00:52:12]} {[%emt 00:01:39]} Bf8 {[%clk 00:44:59]} {[%emt 00:08:06]}
21. Nf4 {[%clk 00:51:58]} {[%emt 00:00:44]} Kh8 {[%clk 00:45:05]} {[%emt
00:00:24]} 22. h4 {[%clk 00:50:31]} {[%emt 00:01:55]} Bd7 {[%clk 00:43:59]}
{[%emt 00:01:38]} 23. Rac1 {[%clk 00:50:07]} {[%emt 00:00:54]} Rc8 {[%clk
00:42:48]} {[%emt 00:01:42]} 24. Rc3 {[%clk 00:44:54]} {[%emt 00:05:41]} Be6
{[%clk 00:41:45]} {[%emt 00:01:34]} 25. Rdc1 {[%clk 00:40:28]} {[%emt
00:04:56]} Rxc3 {[%clk 00:40:54]} {[%emt 00:01:21]} 26. Qxc3 {[%clk 00:40:51]}
{[%emt 00:00:06]} Rc8 {[%clk 00:40:14]} {[%emt 00:01:10]} 27. Qd2 {[%clk
00:40:48]} {[%emt 00:00:32]} Rxc1+ {[%clk 00:38:32]} {[%emt 00:02:14]} 28. Qxc1
{[%clk 00:41:16]} {[%emt 00:00:02]} Be7 {[%clk 00:38:04]} {[%emt 00:00:58]} 29.
g3 {[%clk 00:38:57]} {[%emt 00:02:48]} h6 {[%clk 00:38:17]} {[%emt 00:00:17]}
30. Qc3 {[%clk 00:28:43]} {[%emt 00:10:44]} Bb4 {[%clk 00:35:06]} {[%emt
00:03:42]} 31. Qc2 {[%clk 00:25:34]} {[%emt 00:03:39]} Qd7 {[%clk 00:30:24]}
{[%emt 00:05:12]} 32. a3 {[%clk 00:22:01]} {[%emt 00:04:03]} Be7 {[%clk
00:30:40]} {[%emt 00:00:14]} 33. a4 {[%clk 00:19:27]} {[%emt 00:03:03]} Bb4
{[%clk 00:27:28]} {[%emt 00:03:42]} 34. b3 {[%clk 00:17:03]} {[%emt 00:02:54]}
Qb7 {[%clk 00:25:19]} {[%emt 00:02:39]} 35. Nd3 {[%clk 00:15:57]} {[%emt
00:01:35]} Kg8 {[%clk 00:23:56]} {[%emt 00:01:54]} 36. f3 {[%clk 00:15:41]}
{[%emt 00:00:46]} Be7 {[%clk 00:22:07]} {[%emt 00:02:20]} 37. Kf2 {[%clk
00:13:33]} {[%emt 00:02:36]} Qa6 {[%clk 00:18:25]} {[%emt 00:04:12]} 38. Qc3
{[%clk 00:12:04]} {[%emt 00:01:59]} Kh7 {[%clk 00:16:49]} {[%emt 00:02:07]} 39.
Ke3 {[%clk 00:11:20]} {[%emt 00:01:15]} Qb7 {[%clk 00:14:49]} {[%emt 00:02:31]}
40. Kd2 {[%clk 00:11:12]} {[%emt 00:00:37]} f4 {[%clk 00:12:10]} {[%emt
00:03:09]} 41. g4 {[%clk 00:09:58]} {[%emt 00:01:44]} Bxh4 {[%clk 00:11:55]}
{[%emt 00:00:46]} 42. Kc2 {[%clk 00:06:39]} {[%emt 00:03:48]} Qa6 {[%clk
00:08:41]} {[%emt 00:03:44]} 43. Nxf4 {[%clk 00:06:48]} {[%emt 00:00:21]} Be7
{[%clk 00:08:03]} {[%emt 00:01:08]} 44. Qd3+ {[%clk 00:06:11]} {[%emt
00:01:06]} Qxd3+ {[%clk 00:08:15]} {[%emt 00:00:18]} 45. Kxd3 {[%emt 00:00:12]}
g6 {[%clk 00:07:45]} {[%emt 00:00:51]} 46. Bc3 {[%clk 00:02:33]} {[%emt
00:04:35]} Bd8 {[%clk 00:05:49]} {[%emt 00:02:27]} 47. b4 {[%clk 00:02:43]}
{[%emt 00:00:20]} axb4 {[%clk 00:05:37]} {[%emt 00:00:42]} 48. Bxb4 {[%clk
00:03:12]} {[%emt 00:00:01]} Bd7 {[%clk 00:04:52]} {[%emt 00:01:15]} 49. a5
{[%clk 00:03:35]} {[%emt 00:00:07]} Bb5+ {[%clk 00:04:13]} {[%emt 00:01:09]} 50.
Kd4 {[%clk 00:03:52]} {[%emt 00:00:12]} Bg5 {[%clk 00:02:58]} {[%emt 00:01:46]}
51. Nxd5 {[%clk 00:02:54]} {[%emt 00:01:28]} h5 {[%clk 00:03:27]} {[%emt
00:00:02]} 52. Be7 {[%clk 00:00:44]} {[%emt 00:02:40]} Bd2 {[%clk 00:02:44]}
{[%emt 00:01:14]} 53. Nf6+ {[%clk 00:00:53]} {[%emt 00:00:21]} Kg7 {[%clk
00:02:25]} {[%emt 00:00:49]} 54. gxh5 {[%clk 00:00:41]} {[%emt 00:00:41]} Bxa5
{[%clk 00:02:42]} {[%emt 00:00:13]} 55. hxg6 {[%clk 00:00:35]} {[%emt
00:00:36]} Kxg6 {[%clk 00:02:59]} {[%emt 00:00:13]} 56. Ke4 {[%clk 00:00:36]}
{[%emt 00:00:29]} Bd2 {[%clk 00:02:47]} {[%emt 00:00:42]} 57. f4 {[%clk
00:00:48]} {[%emt 00:00:18]} Bc6+ {[%clk 00:03:12]} {[%emt 00:00:05]} 58. Nd5
{[%clk 00:01:11]} {[%emt 00:00:06]} 1/2-1/2

[Event "SS Manhem Chess Week 2019 Goteborg Open"]
[Site "Molnlycke kulturhus, Biblioteksgatan 2, Molnlycke, Sweden"]
[Date "2019.08.18"]
[Round "7.2"]
[White "Hector, Jonny"]
[Black "Ahlander, Bjorn"]
[Result "0-1"]
[TimeControl "15 minutes + 5 seconds per move from move one (Round 1 - 4) / 90 minutes + 30 seconds per move from move one (Round 5 - 8)"]
[WhiteTitle "GM"]
[BlackTitle "IM"]
[WhiteFideId "1700090"]
[BlackFideId "1700251"]
[WhiteElo "2493"]
[BlackElo "2390"]

1. e4 {[%clk 01:30:04]} {[%emt 00:00:54]} c5 {[%clk 01:30:55]} {[%emt
00:00:06]} 2. Nf3 {[%clk 01:30:21]} {[%emt 00:00:13]} e6 {[%clk 01:31:18]}
{[%emt 00:00:07]} 3. d4 {[%clk 01:30:44]} {[%emt 00:00:07]} cxd4 {[%clk
01:31:42]} {[%emt 00:00:06]} 4. Nxd4 {[%clk 01:31:09]} {[%emt 00:00:05]} Nc6
{[%clk 01:31:39]} {[%emt 00:00:34]} 5. Nc3 {[%clk 01:31:20]} {[%emt 00:00:18]}
Qc7 {[%clk 01:31:57]} {[%emt 00:00:12]} 6. Be3 {[%clk 01:31:00]} {[%emt
00:00:50]} a6 {[%clk 01:32:14]} {[%emt 00:00:14]} 7. Qf3 {[%clk 01:30:44]}
{[%emt 00:00:45]} Nf6 {[%clk 01:32:06]} {[%emt 00:00:39]} 8. O-O-O {[%clk
01:30:27]} {[%emt 00:00:47]} Nxd4 {[%clk 01:28:20]} {[%emt 00:04:16]} 9. Bxd4
{[%clk 01:28:40]} {[%emt 00:02:17]} e5 {[%clk 01:28:36]} {[%emt 00:00:15]} 10.
Be3 {[%clk 01:23:07]} {[%emt 00:06:03]} d6 {[%clk 01:28:57]} {[%emt 00:00:08]}
11. Rd2 {[%clk 01:13:47]} {[%emt 00:09:50]} Be7 {[%clk 01:25:49]} {[%emt
00:03:38]} 12. Rg1 {[%clk 01:08:27]} {[%emt 00:05:50]} Bg4 {[%clk 01:13:14]}
{[%emt 00:13:05]} 13. Qg3 {[%clk 01:08:21]} {[%emt 00:00:35]} Be6 {[%clk
01:13:13]} {[%emt 00:00:31]} 14. f4 {[%clk 00:59:27]} {[%emt 00:09:25]} Qa5
{[%clk 01:01:46]} {[%emt 00:11:57]} 15. a3 {[%clk 00:51:25]} {[%emt 00:08:32]}
Rc8 {[%clk 01:00:05]} {[%emt 00:02:10]} 16. f5 {[%clk 00:49:43]} {[%emt
00:02:13]} Rxc3 {[%clk 00:40:18]} {[%emt 00:20:17]} 17. fxe6 {[%clk 00:48:31]}
{[%emt 00:01:41]} Nxe4 {[%clk 00:39:55]} {[%emt 00:00:53]} 18. exf7+ {[%clk
00:39:56]} {[%emt 00:09:05]} Kf8 {[%clk 00:38:15]} {[%emt 00:02:09]} 19. Qh3
{[%clk 00:35:08]} {[%emt 00:05:18]} Rxe3 {[%clk 00:34:21]} {[%emt 00:04:25]} 20.
Qxe3 {[%clk 00:35:22]} {[%emt 00:00:16]} Nxd2 {[%clk 00:32:19]} {[%emt
00:02:32]} 21. Bd3 {[%clk 00:24:15]} {[%emt 00:11:37]} e4 {[%clk 00:30:05]}
{[%emt 00:02:44]} 0-1

[Event "SS Manhem Chess Week 2019 Goteborg Open"]
[Site "Molnlycke kulturhus, Biblioteksgatan 2, Molnlycke, Sweden"]
[Date "2019.08.18"]
[Round "7.3"]
[White "Golubka, Petro"]
[Black "Kockum, Anton Frisk"]
[Result "1-0"]
[TimeControl "15 minutes + 5 seconds per move from move one (Round 1 - 4) / 90 minutes + 30 seconds per move from move one (Round 5 - 8)"]
[WhiteTitle "IM"]
[BlackTitle "FM"]
[WhiteFideId "14114224"]
[BlackFideId "1709143"]
[WhiteElo "2479"]
[BlackElo "2367"]

1. d4 {[%clk 01:30:29]} {[%emt 00:00:31]} f5 {[%clk 01:30:53]} {[%emt
00:00:06]} 2. Nc3 {[%clk 01:28:41]} {[%emt 00:02:18]} d5 {[%clk 01:31:16]}
{[%emt 00:00:07]} 3. Nf3 {[%clk 01:29:02]} {[%emt 00:00:09]} Nf6 {[%clk
01:31:13]} {[%emt 00:00:33]} 4. Bf4 {[%clk 01:29:16]} {[%emt 00:00:16]} e6
{[%clk 01:31:16]} {[%emt 00:00:26]} 5. e3 {[%clk 01:29:42]} {[%emt 00:00:04]}
Bd6 {[%clk 01:30:16]} {[%emt 00:01:30]} 6. Bd3 {[%clk 01:29:57]} {[%emt
00:00:14]} O-O {[%clk 01:30:25]} {[%emt 00:00:21]} 7. O-O {[%clk 01:30:18]}
{[%emt 00:00:10]} Bd7 {[%clk 01:22:23]} {[%emt 00:08:32]} 8. Ne2 {[%clk
01:25:47]} {[%emt 00:05:01]} Be8 {[%clk 01:21:02]} {[%emt 00:01:51]} 9. Ng3
{[%clk 01:25:10]} {[%emt 00:01:07]} Ne4 {[%clk 01:14:47]} {[%emt 00:06:45]} 10.
c4 {[%clk 01:11:04]} {[%emt 00:14:37]} c6 {[%clk 01:15:02]} {[%emt 00:00:15]}
11. Qb3 {[%clk 01:10:39]} {[%emt 00:00:55]} b6 {[%clk 00:55:21]} {[%emt
00:20:11]} 12. Rfc1 {[%clk 01:04:57]} {[%emt 00:06:12]} h6 {[%clk 00:52:55]}
{[%emt 00:02:56]} 13. a4 {[%clk 00:59:24]} {[%emt 00:06:04]} g5 {[%clk
00:48:52]} {[%emt 00:04:32]} 14. Bxd6 {[%clk 00:59:28]} {[%emt 00:00:26]} Nxd6
{[%clk 00:48:40]} {[%emt 00:00:41]} 15. Ne5 {[%clk 00:59:00]} {[%emt 00:00:58]}
a5 {[%clk 00:45:40]} {[%emt 00:03:31]} 16. Ne2 {[%clk 00:51:50]} {[%emt
00:07:40]} Ra7 {[%clk 00:41:07]} {[%emt 00:05:02]} 17. Rc3 {[%clk 00:48:39]}
{[%emt 00:03:41]} Rg7 {[%clk 00:39:16]} {[%emt 00:02:21]} 18. Rac1 {[%clk
00:47:09]} {[%emt 00:02:01]} f4 {[%clk 00:37:27]} {[%emt 00:02:18]} 19. cxd5
{[%clk 00:44:07]} {[%emt 00:03:32]} cxd5 {[%clk 00:36:59]} {[%emt 00:00:58]} 20.
e4 {[%clk 00:39:32]} {[%emt 00:05:04]} f3 {[%clk 00:23:56]} {[%emt 00:13:34]}
21. gxf3 {[%clk 00:35:51]} {[%emt 00:04:11]} g4 {[%clk 00:23:38]} {[%emt
00:00:48]} 22. exd5 {[%clk 00:33:02]} {[%emt 00:03:19]} gxf3+ {[%clk 00:23:34]}
{[%emt 00:00:34]} 23. Ng3 {[%clk 00:33:29]} {[%emt 00:00:03]} exd5 {[%clk
00:11:51]} {[%emt 00:12:14]} 24. Qxd5+ {[%clk 00:33:21]} {[%emt 00:00:37]} Bf7
{[%clk 00:11:51]} {[%emt 00:00:30]} 25. Qxf3 {[%clk 00:30:13]} {[%emt
00:03:38]} Be6 {[%clk 00:10:42]} {[%emt 00:01:39]} 26. Qe3 {[%clk 00:29:56]}
{[%emt 00:00:47]} Qf6 {[%clk 00:08:30]} {[%emt 00:02:42]} 27. Rc7 {[%clk
00:29:14]} {[%emt 00:01:12]} Bd5 {[%clk 00:05:35]} {[%emt 00:03:25]} 28. Rxg7+
{[%clk 00:27:03]} {[%emt 00:02:41]} Qxg7 {[%clk 00:06:03]} {[%emt 00:00:02]} 29.
Bg6 {[%clk 00:24:45]} {[%emt 00:02:48]} Nf5 {[%clk 00:01:12]} {[%emt 00:05:22]}
30. Nxf5 {[%clk 00:20:35]} {[%emt 00:04:40]} Rxf5 {[%clk 00:01:40]} {[%emt
00:00:02]} 31. Qg3 {[%clk 00:18:59]} {[%emt 00:02:05]} Rf8 {[%clk 00:01:44]}
{[%emt 00:00:26]} 32. Rc7 {[%clk 00:17:55]} {[%emt 00:01:33]} Qxc7 {[%clk
00:01:30]} {[%emt 00:00:44]} 33. Bf7+ {[%clk 00:18:19]} {[%emt 00:00:07]} Kh8
{[%clk 00:01:43]} {[%emt 00:00:17]} 34. Ng6+ {[%clk 00:18:46]} {[%emt
00:00:04]} Kg7 {[%clk 00:02:02]} {[%emt 00:00:11]} 35. Qxc7 {[%clk 00:19:13]}
{[%emt 00:00:03]} Rxf7 {[%clk 00:02:10]} {[%emt 00:00:22]} 36. Qxb8 {[%clk
00:19:28]} {[%emt 00:00:15]} Kxg6 {[%clk 00:02:26]} {[%emt 00:00:13]} 37. Qd6+
{[%clk 00:19:50]} {[%emt 00:00:07]} 1-0